Cogmind - Beta 9.6 @@@ ROGUE MODE // 2020.09.08 @ 05:47:17 Player: MistressMomoko Result: Destroyed by as-91509 with Assembled Heavy Rifle Performance ------------- Evolutions (0) 0 Regions Visited (2) 400 Robots Destroyed (23) 115 Value Destroyed (250) 250 Prototype IDs (0) 0 Alien Tech Used (0) 0 Bonus (0) 0 TOTAL SCORE: 765 Bonus ------- None Cogmind --------- Core Integrity 0/250 Matter 95/400 Energy 96/100 System Corruption 0% Temperature Cool (17) Movement Treading (160) Location -10/Mines Parts ------- > --- POWER (1) -------- (None) > --- PROPULSION (2) --- Light Treads > --- UTILITY (2) ------ Small Storage Unit Medium Matter Pod > --- WEAPON (2) ------- Light Assault Rifle > --- INVENTORY (6) ---- Light Treads Aluminum Leg Aluminum Leg Aluminum Leg Hover Unit Flight Unit Peak State ------------ > --- POWER ------------ Light Ion Engine > --- PROPULSION ------- Aluminum Leg Aluminum Leg > --- UTILITY ---------- Small Storage Unit Medium Matter Pod > --- WEAPON ----------- Medium Laser Small Laser > --- INVENTORY -------- Light Ion Engine Light Treads Light Treads Grenade Launcher [Rating: 7] Favorites ----------- Power Light Ion Engine Engine Light Ion Engine Propulsion Aluminum Leg Treads Light Treads Leg Aluminum Leg Utility Small Storage Unit Storage Small Storage Unit Weapon Medium Laser Energy Gun Medium Laser Ballistic Gun Light Assault Rifle Launcher Grenade Launcher Build | -11 -10 -10 ------- Run | Scr Mat Min Slots Evolved . | . . . Power . | . . . Propulsion . | . . . Utility . | . . . Weapon . | . . . Parts Attached 16 | 6 7 3 Power 2 | 1 1 . Engine 2 | 1 1 . Core . | . . . Reactor . | . . . Propulsion 5 | 2 3 . Treads 2 | . 2 . Leg 3 | 2 1 . Wheel . | . . . Hover . | . . . Flight . | . . . Utility 2 | 1 1 . Device . | . . . Storage 2 | 1 1 . Processor . | . . . Hackware . | . . . Protection . | . . . Artifact . | . . . Weapon 7 | 2 2 3 Energy Gun 2 | 2 . . Energy Cannon . | . . . Ballistic Gun 3 | . 1 2 Ballistic Cannon . | . . . Launcher 2 | . 1 1 Special Weapon . | . . . Impact Weapon . | . . . Slashing Weapon . | . . . Piercing Weapon . | . . . Special Melee Weapon . | . . . Unidentified Prototypes . | . . . Parts Lost 6 | . 2 4 Power 1 | . 1 . Propulsion 1 | . . 1 Utility . | . . . Weapon 4 | . 1 3 Highest Loss Streak 2 | . 2 2 Average Slot Usage (%) 89 | . 94 72 Engine 9 | . 12 . Treads 13 | . 9 28 Leg 14 | . 18 . Storage 27 | . 27 28 Energy Gun 14 | . 18 . Ballistic Gun 3 | . 2 8 Launcher 5 | . 5 7 Naked Turns . | . . . Heaviest Build 13 | 10 13 10 Greatest Support 40 | 20 40 40 Greatest Overweight (x) 1 | . 1 . Average Overweight (x) . | . . . Largest Inventory Capacity 6 | 6 6 6 Average Capacity 5 | 5 6 6 Most Carried 6 | 3 6 6 Average Carried 4 | 1 4 5 Final Capacity 6 | 6 6 6 Final Carried 6 | 3 5 6 Class Distribution -------------------- 100% | Mutant Dominant Class ---------------- Mutant | -10/Materials Mutant | -10/Mines Resources | -11 -10 -10 ----------- Run | Scr Mat Min Matter Collected 326 | 251 22 53 Remotely . | . . . Salvage Created 173 | . 88 85 Parts 25 | . 19 6 Haulers Intercepted . | . . . Recyclers Shooed . | . . . Parts Field Recycled . | . . . Retrieved Matter . | . . . Parts Self-Destructed . | . . . Prevented . | . . . Kills | -11 -10 -10 ------- Run | Scr Mat Min Combat Hostiles Destroyed 20 | . 9 11 Guns 3 | . 2 1 AOE 17 | . 7 10 Classes Destroyed 6 | . 4 2 Tunneler 1 | . 1 . Recycler 1 | . 1 . Watcher 1 | . 1 . Swarmer 12 | . 9 3 Grunt 2 | . . 2 Assembled 6 | . . 6 Best Kill Streak 7 | . 7 6 Combat Bots Only 6 | . 4 6 Max Kills in Single Turn 4 | . 3 4 Gunslinging . | . . . Exploded 4 | . 2 4 Melee . | . . . Uniques/NPCs Destroyed . | . . . Combat | -11 -10 -10 -------- Run | Scr Mat Min Damage Taken 890 | . 317 573 Core 250 | . 90 160 Absorbed by Shields . | . . . Core Remaining (%) 100 | 100 . . Volleys Fired 23 | . 13 10 Largest 2 | . 2 2 Hottest 90 | . 90 53 Shots Fired 36 | . 19 17 Gun 17 | . 9 8 Cannon . | . . . Launcher 19 | . 10 9 Special . | . . . Kinetic 11 | . 3 8 Thermal 6 | . 6 . Explosive 19 | . 10 9 Electromagnetic . | . . . Robot Hit Streak 11 | . 4 11 Robot Miss Streak 2 | . 2 2 Penetration Max . | . . . Secondary Targets 1 | . 1 . Max Gunslinging Chain 1 | . 1 . Shots Hit Robots 23 | . 11 12 Core Hits 36 | . 16 20 Critical Hits . | . . . Critical Kills . | . . . Critical Parts Destroyed . | . . . Melee Attacks . | . . . Impact . | . . . Slashing . | . . . Piercing . | . . . Sneak Attacks . | . . . Combat Hostiles . | . . . Follow-up Attacks . | . . . Damage Inflicted 1427 | . 658 769 Guns 84 | . 37 47 Cannons . | . . . Explosions 1331 | . 609 722 Melee . | . . . Ramming 12 | . 12 . Kinetic 60 | . 13 47 Thermal 24 | . 24 . Explosive 1331 | . 609 722 Electromagnetic . | . . . Impact . | . . . Slashing . | . . . Piercing . | . . . Highest Corruption . | . . . Average Corruption . | . . . Corruption Purged . | . . . Overload Shots . | . . . Overflow Damage 61 | . 35 26 Projectiles . | . . . Explosions 61 | . 35 26 Melee . | . . . Knockbacks . | . . . Impact . | . . . Kinetic . | . . . Secondary . | . . . Self-Inflicted Damage 328 | . 185 143 Shots 11 | . 7 4 Rammed 1 | . 1 . Targets Rammed 1 | . 1 . Kicked . | . . . Crushed . | . . . Highest Temperature 90 | . 90 24 Average Temperature 26 | . 43 9 Received Heat Transfer 209 | . . 209 Siege Activations . | . . . Robots Corrupted . | . . . Combat Hostiles . | . . . Parts Fried . | . . . Impact Corruptions . | . . . Robots Melted . | . . . Combat Hostiles . | . . . Parts Melted 1 | . 1 . Heat Transferred 74 | . 74 . Parts Sabotaged . | . . . Parts Stolen . | . . . Parts Stripped . | . . . Power Chain Reactions . | . . . Missiles Intercepted . | . . . Alert | -11 -10 -10 ------- Run | Scr Mat Min Peak Influence 252 | . 252 212 Average Influence 87 | . 79 187 Maximum Alert Level 1 | . 1 1 Low Security (%) 91 | 100 91 87 Level 1 8 | . 8 12 Level 2 . | . . . Level 3 . | . . . Level 4 . | . . . Level 5 . | . . . High Security . | . . . Max Security . | . . . Squads Dispatched 1 | . 1 . Investigation . | . . . Extermination . | . . . Reinforcement 1 | . 1 . Assault . | . . . Garrison . | . . . Intercept . | . . . Construction Impeded . | . . . Haulers Reinforced . | . . . Stealth | -11 -10 -10 --------- Run | Scr Mat Min Distress Signals . | . . . Communications Jammed . | . . . Distress Signals . | . . . Times Spotted 26 | . 13 13 Peak Tracking Total 12 | . 4 12 Tactical Retreats 2 | . 1 1 Traps | -11 -10 -10 ------- Run | Scr Mat Min Traps Triggered 2 | . 2 . Indirectly . | . . . Trap Hack Attempts . | . . . Triggered . | . . . Disarmed . | . . . Reprogrammed . | . . . Reused . | . . . Traps Extracted . | . . . Installed . | . . . Triggered . | . . . Machines | -11 -10 -10 ---------- Run | Scr Mat Min Machines Disabled 3 | . 2 1 Max in Single Turn 1 | . 1 1 Machines Sabotaged . | . . . Garrisons Compromised . | . . . Overloaded Fab Kills . | . . . Fab Network Shutdowns . | . . . Hacking | -11 -10 -10 --------- Run | Scr Mat Min Machines Accessed . | . . . Terminals . | . . . Fabricators . | . . . Repair Stations . | . . . Recycling Units . | . . . Scanalyzers . | . . . Garrison Access . | . . . Total Hacks . | . . . Successful . | . . . Failed . | . . . Catastrophic . | . . . Database Lockouts . | . . . Manual . | . . . Terminals . | . . . Fabricators . | . . . Repair Stations . | . . . Recycling Units . | . . . Scanalyzers . | . . . Garrison Access . | . . . Terminal Hacks . | . . . Fabricator Hacks . | . . . Repair Station Hacks . | . . . Recycling Unit Hacks . | . . . Scanalyzer . | . . . Garrison Access Hacks . | . . . Unauthorized Hacks . | . . . Terminals . | . . . Fabricators . | . . . Repair Stations . | . . . Recycling Units . | . . . Scanalyzers . | . . . Garrison Access . | . . . Data Cores Recovered . | . . . Used . | . . . Hacking Detections . | . . . Full Trace Events . | . . . Feedback Events . | . . . Feedback Blocked . | . . . Robot Schematics Acquired . | . . . Robots Built . | . . . Matter . | . . . Time . | . . . Total Robot Build Rating . | . . . Part Schematics Acquired . | . . . Parts Built . | . . . Matter . | . . . Time . | . . . Total Part Build Rating . | . . . Parts Repaired . | . . . Time . | . . . Parts Recycled . | . . . Recycled Matter . | . . . Retrieved Matter . | . . . Retrieved Components . | . . . Parts Scanalyzed . | . . . Part Schematics Acquired . | . . . Parts Damaged . | . . . Bothacking | -11 -10 -10 ------------ Run | Scr Mat Min Used RIF Installer . | . . . Robots Hacked . | . . . Non-combat . | . . . Combat . | . . . Robot Hacks Applied . | . . . Relay Couplers Released . | . . . Robots Rewired . | . . . Allies Hacked . | . . . Hacks Repelled . | . . . Allies | -11 -10 -10 -------- Run | Scr Mat Min Total Allies . | . . . Largest Group . | . . . Highest-Rated Group . | . . . Highest-Rated Ally . | . . . Total Orders . | . . . Ally Attacks . | . . . Total Damage . | . . . Kills . | . . . Allies Corrupted . | . . . Allies Melted . | . . . Intel | -11 -10 -10 ------- Run | Scr Mat Min Robot Analysis Total . | . . . Derelict Logs Recovered . | . . . Drone Launches . | . . . Drone Recoveries . | . . . Exploration | -11 -10 -10 ------------- Run | Scr Mat Min Turns Passed 428 | 66 280 82 Spaces Moved 256 | 48 177 31 Core 10 | 9 1 . Treads 74 | . 43 31 Legs 172 | 39 133 . Wheels . | . . . Hover . | . . . Flight . | . . . Fastest Speed 50 | 50 100 160 Average Speed 129 | 106 129 160 Slowest Speed 160 | 120 160 160 Overloaded Moves . | . . . Propulsion Burnouts . | . . . Robots Hopped . | . . . Cave-ins Triggered . | . . . Exploration Rate (%) 17 | 5 33 13 Regions Visited 2 Branch Regions 1 Pre-discovered Areas . | . . . Known Exits Taken . | . . . Unknown Exits Taken 2 | 1 1 . Scrap Searched . | . . . Spaces Dug . | . . . Terrain Destroyed 111 | . 45 66 Melee . | . . . Projectile . | . . . AOE 111 | . 45 66 Actions | -11 -10 -10 --------- Run | Scr Mat Min Total 319 | 62 208 49 Wait 3 | . 3 . Move 254 | 47 176 31 Hop . | . . . Pick Up 21 | 9 8 4 Fast Attach 2 | . 1 1 Attach 14 | 6 6 2 Detach . | . . . Swap . | . . . Drop 1 | . . 1 Fire 23 | . 13 10 Melee . | . . . Ram . | . . . Kick 1 | . 1 . Crush . | . . . Escape Stasis . | . . . Rewire . | . . . Trap . | . . . Miscellaneous . | . . . Route ------- -11/Scrapyard -10/Materials -10/Mines History --------- Turn | Location | Event 4 | -11/Scrapyard | Discovered new exit (range 15) 67 | -11/Scrapyard | Entered Materials 279 | -10/Materials | Discovered new exit (range 15) 312 | -10/Materials | Build established: Mutant 347 | -10/Materials | Entered Mines 369 | -10/Mines | Met a Derelict bent on vengeance 397 | -10/Mines | Assembled infested the area 413 | -10/Mines | Received a Rocket Launcher from a helpful Derelict 414 | -10/Mines | Core integrity fell below 50% 422 | -10/Mines | Core integrity fell below 20% 429 | -10/Mines | Destroyed by as-91509 with Assembled Heavy Rifle Last Messages --------------- 00411_ MR-8XB(g): "Need to get rid of a swarm? Done. Need a big hole in the wall? Done." 00412_ MR-8XB(g): "Need a small hole in the wall? Leave that to the mining laser wimps, I say!" 00413_ MR-8XB(g): "Would you like a rocket launcher? I know I would if I were you, so I'm going to lend you mine." 00413_ MR-8XB(g) slips back into the shadows. 00417_ Acquired Rocket Launcher. 00419_ Destroyed Asb. F-torch. 00419_ Seismic Survey Station disabled. 00422_ as-23757 destroyed. 00422_ Destroyed Asb. Hover Unit. 00422_ as-55044 destroyed. 00422_ as-64469 destroyed. 00422_ as-96716 destroyed. 00424_ as-55143 destroyed. 00424_ as-45042 destroyed. 00424_ Rocket Launcher destroyed. 00425_ The unstable cave ceiling collapses. 00429_ Lgt. Treads destroyed. Map ----- +----------------------------------------------------+ | ????????????????????????????????????? | | ????????????????????????????????????? | | ????????????????????????????????????? | | ????????????????????????????????????? | | ????????????????????????????????????? | | ????????????????????????????????????? | | ????????????????????????????????????? | | ????????????????????????????????????? | | ????????????????????????????????????? | | ????????????????????????????????????? | | ????????????????????????????????????? | | ????????????????????????????????????? | | ????????????????????????????????????? | | ????????????????????????????????????? | | ????????????????????????????????????? | | ????????????????????????????????????? | | ????????????????????????????????????? | | ????????????????????????????????????? | | ??????????????????????????####??????? | | ?????????????????????????## ##?????? | | ????????????????????????## #?????? | | ?????????????????????#### #?????? | | ????????????????????## #?????? | | ?????????????######## #??????? | | ?????????????? ###????? | | ?????????????????????# @ #????? | | ?????????????????????### #????? | | ???????????????????????# # #????? | | ???????????????????????# #????? | | ?????????????????????# a #????? | | ?????????????????????# # %aa #???? | | ???????????????????? # ##???? | | ??????????????????# ##?## % ????? | | ?????????????????## #####aa""" ##???? | | ?????????? """ ####?? | | ?????????????????######## #?? | | ????????????????????????# ! # #?? | | ????????????????????????# ##?? | | ????????????????????????## ##?? | | ????????????????????????## #?? | | ????????????????????????# # ##?? | | ????????????????????????## #??? | | ?????????????????????????# ##?? | | ????????????????????????## #?? | | ????????????????????????# #?? | | ????????????????????????# #?? | | ???????????????????????## ##?? | | ??????????????????????## #?? | | ??????????????????????# =#?? | | ???????????????? #?? | +----------------------------------------------------+ Best States ------------- Heat Dissipation 25 Energy Generation 10 Energy Capacity 125 Matter Stores 291 Matter Capacity 400 Sight Range 16 Terrain Scan Density 10 Evasion (%) 40 Recoil Reduction 2 Item Schematics ----------------- None Robot Schematics ------------------ None Fabricated ------------ Nothing Alien Tech Used ----------------- None Achievements -------------- None Challenges ------------ None Game ------ Seed AssemblyBiometalDerivative Manual? 0 Play Time 00:11:32 Cumulative 10.2 hours Start 2020.09.08 @ 05:37:39 End 2020.09.08 @ 05:47:17 Sessions 1 Manual Loads 0 Difficulty Rogue Special Mode None Game No. 36 Rogue 36 Adventurer 0 Explorer 0 Win Type - Total 0 Types 0/0/0/0/0/0/0 Lore% 13 Gallery% 21 Achievement% 17 Wizard Run 0 Options --------- ASCII 1 Keyboard 0 Movement Mouse Keybinds 0 Fullscreen 1 Font 18/SmallcapsGlow Map View 76x50 Tactical HUD 1 Map Filters NONE Filters NONE Steam 1 RUN: 85d79fc9-b29e-4b6d-a65d-f1a49f8b620d